bitfinex/quotes_ETHUSD_20251124
["timestamp","ask_amount","ask_price","bid_price","bid_amount"]
[1763947174280,0.4763,2793.2,2791.6,0.1]
[1763947174656,0.33221026,2793.1,2791.0,0.4691]
[1763947174846,2.101959,2793.0,2791.5,0.1]
[1763947175047,0.90699264,2792.7,2791.0,0.4691]
[1763947175356,0.90699264,2792.7,2790.9,0.159]
[1763947175357,0.71971693,2792.9,2790.9,0.259]
[1763947175563,2.113119,2792.4,2790.9,0.259]
[1763947175762,0.80794794,2792.8,2790.9,0.259]
[1763947175763,0.92789849,2792.8,2790.9,0.259]
[1763947175974,0.90699264,2792.6,2790.9,0.259]
[1763947176484,0.90699264,2792.4,2790.5,0.1]
[1763947176683,0.90699264,2792.4,2790.8,0.1]
[1763947176983,0.4907,2792.3,2790.9,0.1]
[1763947177480,3.71384,2792.2,2790.8,0.1]
[1763947177653,0.420454,2792.1,2790.7,0.1]
[1763947177854,0.4907,2792.2,2790.7,0.1]
[1763947178075,0.90699264,2792.7,2790.0,3.62004897]
[1763947178076,0.90699264,2792.4,2790.0,0.50494229]
[1763947178276,0.90699264,2792.0,2790.0,0.5691]
[1763947178582,0.686,2791.9,2790.3,0.1]
[1763947178747,0.4907,2791.8,2790.3,0.1]
[1763947178946,0.4907,2791.8,2790.7,0.1]
[1763947179782,0.1953,2790.8,2790.7,0.1]
[1763947180002,0.686,2790.8,2790.2,0.1]
[1763947180153,0.686,2790.8,2790.0,0.1]
[1763947180352,0.4907,2790.7,2790.0,0.1]
[1763947180580,0.1953,2790.8,2790.4,0.1]
[1763947180783,0.1953,2790.8,2789.9,0.1581]
[1763947180985,0.1953,2790.8,2789.6,0.001]
[1763947180986,0.4907,2790.7,2789.6,0.001]
[1763947181704,0.1953,2789.7,2789.6,0.001]
[1763947182291,0.686,2789.7,2789.6,0.001]
[1763947182697,0.686,2789.7,2789.5,0.001]
[1763947182698,0.686,2789.7,2788.9,0.1]
[1763947182858,0.4907,2789.6,2788.9,0.1]
[1763947183053,0.4907,2789.6,2788.4,0.4661531]
[1763947183054,0.4907,2789.6,2788.7,0.1]
[1763947183251,0.4907,2789.6,2788.5,0.1]
[1763947183695,0.4907,2789.6,2788.3,0.90799264]
[1763947183879,0.4907,2789.6,2788.8,0.1]
[1763947184080,0.4907,2789.6,2788.4,0.44944241]
[1763947184280,0.4907,2789.6,2788.7,0.1]
[1763947184478,0.4907,2789.6,2788.3,0.101]
[1763947184669,0.4907,2789.6,2788.9,0.1]
[1763947185870,0.1953,2790.0,2789.0,0.03585514]
[1763947186071,0.1953,2790.0,2789.3,0.1]
[1763947186268,0.4903,2789.9,2789.1,0.1]
[1763947186964,0.1953,2790.0,2789.2,0.1]
[1763947187185,0.1953,2790.0,2789.5,0.1]
[1763947187505,0.1953,2790.0,2789.1,0.2491]
[1763947187991,0.1953,2790.0,2789.4,0.1]
[1763947188431,0.1953,2790.0,2789.1,0.1491]
[1763947188733,0.1953,2790.0,2789.3,0.1]
[1763947189821,0.1953,2790.0,2789.6,0.1]
[1763947192834,0.4903,2790.3,2789.6,0.1]
[1763947193150,0.1953,2790.8,2789.6,0.1]
[1763947193454,0.4903,2790.7,2789.9,0.1]
[1763947194336,0.4903,2790.7,2789.4,0.1]
[1763947194533,0.4903,2790.7,2789.1,0.1491]
[1763947194534,0.03575259,2790.6,2789.1,0.1491]
[1763947194734,0.4903,2790.7,2789.2,0.1]
[1763947194915,0.4903,2790.6,2789.2,0.4662]
[1763947195112,0.4903,2790.6,2789.5,0.1]
[1763947195340,0.4903,2790.6,2789.7,0.1]
[1763947195751,0.4903,2790.6,2789.3,0.4662]
[1763947195956,0.4903,2790.6,2789.5,0.1]
[1763947196318,0.4903,2790.6,2789.4,0.03585]
[1763947196319,0.1953,2790.8,2789.6,0.50204743]
[1763947196718,0.1877,2791.0,2790.3,0.1]
[1763947196923,0.1877,2791.0,2789.8,0.90699264]
[1763947197258,0.4903,2791.4,2790.4,0.1]
[1763947197259,0.1877,2791.2,2790.4,0.1]
[1763947197427,0.1877,2791.2,2790.5,0.1]
[1763947197758,0.1877,2791.2,2790.6,0.1581]
[1763947197956,0.90699264,2792.1,2790.6,0.1581]
[1763947197957,0.1877,2791.6,2790.6,0.1581]
[1763947198274,0.1877,2791.6,2790.7,0.1]
[1763947198275,0.03575259,2791.5,2790.7,0.1]
[1763947198551,0.1877,2791.6,2790.7,10.8342]
[1763947198719,0.1877,2791.6,2791.0,0.1]
[1763947198922,0.1877,2791.6,2790.8,5.90422264]
[1763947199122,0.4903,2791.8,2791.0,0.90699264]
[1763947199356,0.4903,2791.8,2791.1,3.898]
[1763947199562,0.4903,2792.3,2791.1,4.3642]
[1763947199720,0.03575259,2792.3,2791.1,4.42511926]
[1763947199919,0.4903,2791.8,2791.1,3.798]
[1763947200551,0.4903,2792.2,2791.1,3.898]
[1763947201229,0.4903,2791.8,2791.1,3.798]
[1763947201425,0.45159849,2792.4,2791.1,3.798]
[1763947201755,0.36841672,2792.3,2791.1,3.898]
[1763947201966,0.03575259,2791.8,2791.1,3.798]
[1763947202272,0.458,2791.2,2790.7,3.798]
[1763947202433,0.9483,2791.2,2790.7,3.798]
[1763947202873,0.4903,2791.1,2790.7,3.798]
[1763947203061,0.4903,2791.6,2790.7,3.798]
[1763947204178,0.1877,2790.8,2790.7,3.798]
[1763947204353,1.136,2790.8,2790.0,0.159]
[1763947205479,0.1877,2791.0,2789.9,0.1]
[1763947205658,0.678,2791.6,2790.9,0.4662]
[1763947205858,0.678,2791.6,2791.0,0.1]
[1763947206090,0.678,2791.6,2791.1,0.1]
[1763947206276,0.1877,2791.6,2791.1,4.0561]
[1763947206790,0.6816,2791.6,2791.1,3.898]
[1763947207042,0.1877,2791.6,2791.1,4.0561]
[1763947207157,0.1973,2791.9,2791.1,4.0561]
[1763947207486,0.1973,2791.9,2791.4,0.1]
[1763947207689,0.53139577,2791.9,2791.4,0.1]
[1763947207890,0.4763,2791.5,2791.1,3.798]
[1763947208080,0.3448,2791.2,2791.1,3.798]
[1763947208285,0.8387,2791.2,2791.1,3.798]
[1763947208466,0.8387,2791.2,2790.3,3.798]
[1763947208656,0.475,2790.9,2790.2,0.90699264]
[1763947209059,0.1947,2790.8,2790.2,0.90699264]
[1763947209299,0.4939,2791.4,2790.2,0.90699264]
[1763947209508,0.33411275,2791.3,2790.5,0.1]
[1763947209659,0.33411275,2791.3,2790.4,0.1]
[1763947209858,0.4939,2791.3,2790.4,0.1]
[1763947210057,0.4939,2791.3,2790.1,0.5662]
[1763947210294,0.4939,2791.3,2790.1,1.02916026]
[1763947210509,0.4939,2791.3,2790.4,0.1]
[1763947210967,0.03575259,2791.2,2790.1,0.52711926]
[1763947211170,0.1973,2791.9,2790.2,0.4662]
[1763947211171,0.4939,2791.6,2790.2,0.4662]
[1763947211375,0.33404505,2791.5,2790.7,0.1]
[1763947211571,0.33404505,2791.5,2790.8,3.798]
[1763947211777,0.82794505,2791.5,2790.8,3.798]
[1763947211989,0.33404505,2791.4,2790.8,3.798]
[1763947212672,0.33404505,2791.4,2790.8,3.898]
[1763947212911,0.4939,2791.5,2790.8,3.798]
[1763947213214,0.671,2790.9,2790.4,3.798]
[1763947213383,0.3379,2790.8,2789.9,3.798]
[1763947213585,0.8318,2790.8,2789.9,4.2037]
[1763947214302,0.1947,2790.9,2789.9,4.2037]
[1763947214506,0.4939,2791.4,2790.3,0.1]
[1763947214708,0.33427034,2791.3,2790.3,0.1]
[1763947214910,0.33427034,2791.3,2789.9,4.2037]
[1763947215097,0.86392293,2791.2,2789.9,4.2037]
[1763947215270,0.33427034,2791.1,2789.9,4.2037]
[1763947215475,0.82817034,2791.1,2789.9,4.2037]
[1763947215811,0.33427034,2791.0,2789.9,4.2037]
[1763947216010,0.33427034,2791.0,2790.0,0.52037]
[1763947216183,0.1973,2791.9,2790.0,0.52037]
[1763947216184,0.4939,2791.3,2790.5,0.1]
[1763947216392,0.33427034,2791.2,2790.5,0.1]
[1763947216707,0.4939,2791.3,2790.3,0.4662]
[1763947216911,0.4939,2791.3,2790.5,0.1]
[1763947217073,0.4939,2791.7,2790.9,0.1]
[1763947217273,0.33461323,2791.6,2790.8,0.1]
[1763947217478,0.33461323,2791.7,2790.8,0.1]
[1763947217679,0.82851323,2791.7,2790.8,0.1]
[1763947217917,0.671,2790.9,2790.3,1.00699264]
[1763947218208,0.671,2790.9,2790.3,0.49639926]
[1763947218374,0.671,2790.9,2790.4,0.1]
[1763947218572,0.1973,2791.9,2790.4,0.1]
[1763947218811,0.1973,2791.9,2790.1,0.6252]
[1763947218812,0.82862839,2791.8,2790.1,1.06599264]
[1763947218985,0.33472839,2791.7,2790.1,1.16599264]
[1763947219315,0.33472839,2791.7,2789.3,4.09603103]
[1763947219316,0.671,2790.2,2789.2,3.798]
[1763947219513,0.1947,2790.2,2789.8,0.1]
[1763947219877,0.1947,2790.4,2789.8,0.1]
[1763947220115,0.1947,2790.7,2790.1,0.1]
[1763947220304,0.1947,2790.7,2789.7,0.1]
[1763947220614,0.4939,2790.6,2789.7,0.1]
[1763947220815,0.1947,2790.7,2789.8,0.03584486]
[1763947220979,0.1947,2790.7,2790.3,0.1]
[1763947221381,0.6886,2790.7,2790.3,0.1]
[1763947221575,0.6886,2790.7,2790.2,0.1]
[1763947221923,0.4939,2791.3,2790.5,0.1]
[1763947222162,0.33497811,2791.2,2790.6,3.798]
[1763947222335,0.4939,2791.3,2789.8,1.00699264]
[1763947222336,0.671,2790.7,2789.8,1.00699264]
[1763947222516,0.671,2790.7,2789.5,0.90699264]
[1763947222715,0.4939,2790.6,2789.7,0.1]
[1763947223339,0.4939,2790.6,2789.5,0.1]
[1763947223541,0.4939,2790.6,2789.4,0.1]
[1763947223745,0.4939,2790.6,2789.8,0.1]
[1763947224158,0.4939,2790.6,2789.5,0.1]
[1763947225145,0.33500884,2790.5,2789.2,0.1]
[1763947225444,0.33500884,2790.5,2789.3,0.03585128]
[1763947225648,0.4939,2790.4,2789.2,0.1]
[1763947226644,0.33485386,2790.3,2789.2,0.1]
[1763947226943,0.33488776,2790.3,2789.2,0.13585257]
[1763947227144,0.4939,2790.2,2789.2,0.13585257]
[1763947227724,0.4939,2790.2,2788.8,0.2491]
[1763947228115,0.4939,2790.2,2788.9,0.1]
[1763947228315,0.4939,2790.2,2788.8,0.6153]
[1763947228512,0.4939,2790.2,2789.1,0.1]
[1763947229148,0.4939,2790.2,2789.2,0.1]
[1763947229848,0.4939,2790.2,2789.4,0.1]
[1763947230048,2.96936764,2790.5,2789.5,0.13584871]
[1763947230219,2.062375,2790.5,2790.0,0.1]
[1763947230419,2.556275,2790.5,2790.0,0.1]
[1763947230615,2.556275,2790.5,2789.8,0.1]
[1763947230616,2.062375,2790.5,2789.8,0.1]
[1763947230812,2.062375,2790.5,2790.0,0.1]
[1763947231016,2.062375,2790.5,2790.3,0.1]
[1763947231739,2.062375,2790.5,2790.4,0.1]
[1763947232148,2.062375,2790.5,2790.2,0.159]
[1763947232566,2.062375,2790.5,2790.0,0.1]
[1763947232764,2.062375,2790.5,2790.0,0.57912889]
[1763947232965,2.062375,2790.5,2789.9,0.159]
[1763947233172,0.4939,2790.4,2789.6,0.159]
[1763947233386,0.4939,2790.4,2789.4,0.1]
[1763947233943,0.52965259,2790.4,2789.4,0.1]
[1763947234270,0.52965259,2790.4,2789.1,0.1]
[1763947234449,0.25920276,2790.3,2789.1,0.1]
[1763947234645,2.062375,2790.5,2789.7,0.1]
[1763947234854,2.556275,2790.5,2789.7,0.1]
[1763947235167,0.1947,2790.0,2789.2,0.1]
[1763947235385,0.6886,2790.4,2789.5,0.1]
[1763947235547,0.1947,2790.4,2789.8,0.1]
[1763947236456,0.1947,2789.9,2789.4,0.1]
[1763947236658,0.4939,2790.3,2789.4,0.5534]
[1763947236873,2.062375,2790.5,2789.5,0.03584871]
[1763947237181,2.062375,2790.5,2789.7,0.1]
[1763947237684,2.536775,2790.5,2789.7,0.1]
[1763947238416,0.658,2789.8,2789.0,1.36039264]
[1763947238685,0.658,2789.8,2788.9,4.32503103]
[1763947238686,0.658,2789.8,2789.1,0.1]
[1763947238983,1.1324,2789.8,2789.1,0.1]
[1763947239163,0.658,2789.8,2789.1,0.1]
[1763947239365,0.1956,2789.8,2789.1,0.1]
[1763947239682,0.67,2789.8,2789.1,0.57854237]
[1763947239985,0.67,2789.8,2788.5,1.36039264]
[1763947239986,0.67,2789.8,2788.8,0.2491]
[1763947240158,0.4744,2789.7,2788.8,0.2491]
[1763947243378,0.4744,2789.7,2788.4,0.101]
[1763947243898,0.4744,2789.7,2788.4,0.001]
[1763947244288,0.4991,2788.5,2788.4,0.001]
[1763947244736,0.9554,2788.5,2788.4,0.001]
[1763947245097,0.4563,2788.9,2788.4,0.001]
[1763947245305,0.79047252,2789.7,2788.4,0.001]
[1763947245616,0.79047252,2789.7,2788.4,0.101]
[1763947245781,0.4563,2789.6,2788.4,0.101]
[1763947246100,0.4563,2789.6,2788.7,0.1]
[1763947247882,0.4563,2789.6,2788.4,0.4672]
[1763947247883,0.4563,2789.6,2788.4,0.001]
[1763947248518,0.4563,2789.6,2788.5,0.1]
[1763947248722,0.4563,2789.6,2788.4,0.001]
[1763947249413,0.49205259,2789.6,2788.4,0.001]
[1763947250586,0.4563,2789.6,2788.4,0.001]
[1763947251089,0.4991,2788.5,2788.4,0.001]
[1763947251614,0.4563,2788.7,2788.4,0.001]
[1763947252793,0.4563,2789.2,2788.4,0.001]
[1763947254125,0.4563,2789.2,2788.4,0.101]
[1763947254792,0.4563,2789.2,2788.4,0.001]
[1763947257257,0.002,2789.2,2788.6,0.1]
[1763947257441,0.002,2789.2,2788.5,0.4662]
[1763947257442,0.002,2789.2,2788.9,0.1]
[1763947257736,0.002,2789.2,2789.1,0.6153]
[1763947257916,0.002,2789.2,2789.1,0.7153]
[1763947258117,0.002,2789.2,2789.1,1.1815]
[1763947258432,0.002,2789.2,2788.8,0.4662]
[1763947258602,0.002,2789.2,2789.0,0.1491]
[1763947258807,0.002,2789.2,2788.7,0.1491]
[1763947259032,0.002,2789.2,2788.7,0.63537241]
[1763947259638,0.4583,2789.2,2788.4,0.001]
[1763947260001,0.4583,2789.2,2788.6,0.1]
[1763947260002,0.002,2789.2,2788.6,0.1]
[1763947260537,0.4583,2789.2,2788.4,0.001]
[1763947260918,0.03575259,2789.1,2788.4,0.001]
[1763947261115,0.4583,2789.2,2788.4,0.001]
[1763947261447,0.4583,2789.2,2788.4,0.101]
[1763947261627,0.4583,2789.2,2788.4,0.001]
[1763947262706,0.23265259,2789.1,2788.4,6.471]
[1763947262909,0.4991,2788.5,2788.4,6.471]
[1763947263119,0.4991,2788.5,2788.4,10.291]
[1763947263665,0.4563,2789.0,2788.4,10.291]
[1763947263852,0.1969,2789.1,2788.4,11.3202]
[1763947264054,0.1969,2789.1,2788.5,10.29]
[1763947264259,0.002,2789.2,2788.6,3.82]
[1763947264444,0.002,2789.2,2789.1,0.7153]
[1763947264764,0.002,2789.2,2788.8,3.82]
[1763947265169,0.4583,2789.2,2788.8,3.82]
[1763947265381,0.002,2789.2,2788.8,3.82]
[1763947265551,0.002,2789.2,2788.8,4.21691]
[1763947266091,0.4563,2789.1,2788.8,3.82]
[1763947266377,0.002,2789.2,2788.8,3.82]
[1763947267379,0.4756,2789.1,2788.8,3.82]
[1763947268183,0.002,2789.2,2788.5,3.92]
[1763947268337,0.002,2789.2,2789.1,0.1491]
[1763947269237,0.002,2789.2,2789.1,1.0727]
[1763947269487,0.002,2789.2,2789.1,4.9927]
[1763947269666,0.002,2789.2,2789.1,5.58157]
[1763947270543,0.002,2789.2,2789.1,5.68157]
[1763947270746,0.002,2789.5,2789.4,0.1]
[1763947270969,0.002,2789.5,2789.4,10.8542]
[1763947271174,0.002,2789.5,2789.4,10.288]
[1763947271379,0.002,2789.5,2789.3,3.818]
[1763947272460,0.002,2789.5,2789.3,4.21471]
[1763947272791,0.002,2789.5,2789.4,0.5662]
[1763947272965,0.002,2789.5,2789.4,4.8416]
[1763947273160,0.002,2789.5,2789.4,4.3842]
[1763947273377,0.002,2789.5,2789.4,3.818]
[1763947273566,0.4727,2789.5,2789.4,3.818]
[1763947274288,0.9483,2789.5,2789.4,3.818]
[1763947274793,0.002,2789.5,2789.4,3.818]
[1763947274977,2.064375,2789.5,2789.4,3.818]
[1763947276888,0.002,2789.8,2789.6,1.753625]
[1763947277088,0.002,2789.8,2789.7,1.753625]
[1763947277612,0.002,2789.8,2789.7,2.219825]
[1763947277908,0.4727,2789.8,2789.7,1.753625]
[1763947278069,0.9483,2789.8,2789.7,1.753625]
[1763947279386,0.9483,2789.8,2789.1,1.753625]
[1763947279689,0.3569,2789.3,2789.1,1.753625]
[1763947280278,0.4756,2789.7,2789.1,1.753625]
[1763947280596,0.002,2789.8,2789.1,1.853625]
[1763947280771,0.002,2789.8,2789.1,2.0847275]
[1763947281468,0.4776,2789.8,2789.1,2.0847275]
[1763947281673,0.4776,2789.8,2789.1,1.9847275]
[1763947282950,0.002,2789.8,2789.2,1.753625]
[1763947283603,0.002,2789.8,2789.3,8.223625]
[1763947283788,0.002,2789.8,2789.4,1.01306176]
[1763947283989,0.002,2789.8,2789.4,1.47046176]
[1763947284218,0.002,2789.8,2789.4,1.01306176]
[1763947284425,0.002,2789.8,2789.7,0.4662]
[1763947284741,0.002,2789.8,2789.4,0.91306176]
[1763947284889,0.002,2789.8,2789.5,0.91366868]
[1763947286193,0.4707,2789.6,2789.3,8.223625]
[1763947286418,0.002,2789.8,2789.3,8.223625]
[1763947286620,0.002,2789.8,2789.3,8.781025]
[1763947287005,0.4776,2789.8,2789.3,8.223625]
[1763947287510,0.002,2789.8,2789.3,9.06909775]
[1763947287687,0.002,2789.8,2789.4,0.03585]
[1763947287888,0.002,2789.8,2789.4,0.5574]
[1763947288524,0.4776,2789.8,2789.3,9.06909775]
[1763947288726,0.4776,2789.8,2789.4,8.223625]
[1763947289029,0.002,2789.8,2789.4,9.23053478]
[1763947289524,0.002,2789.8,2789.7,0.4662]
[1763947289723,0.002,2789.8,2789.7,0.5662]
[1763947290222,0.002,2789.8,2789.7,2.319825]
[1763947290449,0.002,2789.8,2789.7,8.223625]
[1763947290724,0.9483,2789.8,2789.7,8.223625]
[1763947294423,0.002,2789.8,2789.7,8.223625]
[1763947294794,0.002,2789.8,2789.7,3.0421875]
[1763947294996,0.002,2789.8,2789.7,2.319825]
[1763947295595,0.002,2789.8,2789.7,2.81307114]
[1763947295806,0.002,2789.8,2789.7,2.777225]
[1763947296331,0.002,2790.1,2789.9,0.1]
[1763947296901,0.002,2790.1,2790.0,0.4662]
[1763947297202,0.002,2790.1,2790.0,0.7446025]
[1763947297626,0.002,2790.1,2790.0,1.3108025]
[1763947297816,0.002,2790.1,2790.0,3.0624275]
[1763947298199,0.4589,2790.1,2790.0,1.751625]
[1763947298399,0.9222,2790.1,2790.0,1.751625]
[1763947301133,0.9222,2790.1,2789.4,1.751625]
[1763947301364,0.88175259,2790.0,2789.4,1.751625]
[1763947301732,0.6549,2789.9,2789.4,1.751625]
[1763947301931,0.6549,2789.9,2789.4,2.5737875]
[1763947302234,0.4633,2789.8,2789.4,2.5737875]
[1763947302441,0.1916,2789.9,2789.4,2.5737875]
[1763947302748,0.6549,2789.9,2789.4,2.5737875]
[1763947303462,0.6549,2789.9,2789.5,1.751625]
[1763947303463,0.4633,2789.8,2789.5,1.751625]
[1763947304862,0.1916,2789.9,2789.5,1.751625]
[1763947305066,0.4531,2789.6,2789.5,1.751625]
[1763947305758,0.9156,2789.6,2789.5,1.751625]
[1763947309766,0.4531,2789.6,2789.5,1.751625]
[1763947310835,0.9156,2789.6,2789.5,1.752625]
[1763947311974,0.1916,2789.9,2789.5,2.218825]
[1763947312270,0.4645,2790.1,2789.6,0.2218825]
[1763947312463,0.4645,2790.1,2789.5,2.218825]
[1763947312642,0.002,2790.1,2789.6,1.751625]
[1763947312969,0.002,2790.1,2789.6,2.315525]
[1763947313338,0.002,2790.1,2789.6,1.851625]
[1763947313541,0.4625,2790.0,2789.6,1.751625]
[1763947313741,0.6415,2789.7,2789.6,1.751625]
[1763947313975,1.104,2789.7,2789.6,1.751625]
[1763947314469,0.1884,2789.9,2789.6,1.751625]
[1763947314879,0.4531,2789.7,2789.6,1.751625]
[1763947315061,0.1884,2789.9,2789.6,1.751625]
[1763947315467,0.6509,2789.9,2789.6,1.751625]
[1763947316361,0.1884,2789.9,2789.6,1.751625]
[1763947316876,0.002,2790.1,2789.8,0.4662]
[1763947317370,0.4645,2790.1,2789.6,1.751625]
[1763947317568,0.4645,2790.1,2789.6,1.9832775]
[1763947318435,0.002,2790.1,2789.7,1.751625]
[1763947318750,0.002,2790.1,2790.0,0.4662]
[1763947319758,0.002,2790.1,2790.0,2.681725]
[1763947319987,0.002,2790.1,2790.0,2.781725]
[1763947320153,0.002,2790.1,2790.0,3.49273744]
[1763947320561,0.002,2790.4,2790.0,8.08073008]
[1763947320765,0.002,2791.5,2791.0,0.1]
[1763947320951,0.002,2791.5,2791.1,0.4662]
[1763947321353,0.002,2791.5,2791.1,5.93649209]
[1763947321553,0.002,2791.5,2791.4,0.5662]
[1763947321861,0.002,2791.8,2791.7,0.1]
[1763947322073,0.002,2791.8,2791.7,5.57259209]
[1763947322281,0.002,2791.8,2791.7,6.03649209]
[1763947322788,0.002,2792.2,2791.8,1.83709264]
[1763947322942,0.002,2792.2,2792.1,0.7153]
[1763947323592,0.002,2792.2,2792.1,1.1792]
[1763947324495,0.002,2792.2,2792.1,0.6153]
[1763947325624,0.002,2792.2,2791.7,4.09939945]
[1763947325625,0.4551,2792.2,2791.7,0.1]
[1763947326179,0.002,2792.2,2791.7,0.4639]
[1763947326377,0.002,2792.2,2791.9,0.1]
[1763947326623,0.4651,2792.2,2791.6,0.1491]
[1763947326979,0.4651,2792.2,2791.7,1.751625]
[1763947327319,0.4651,2792.2,2791.4,0.90699264]
[1763947327609,0.6497,2791.5,2790.9,0.1]
[1763947327809,0.6497,2791.5,2791.0,0.2080625]
[1763947328124,1.1128,2791.5,2791.0,0.2080625]
[1763947328329,0.4517,2791.1,2790.3,0.259]
[1763947328533,0.4517,2791.1,2790.3,0.488]
[1763947328829,0.9148,2791.1,2790.3,0.259]
[1763947329031,0.9148,2791.1,2790.1,0.159]
[1763947329322,0.4631,2791.0,2789.6,4.56559945]
[1763947329477,0.4631,2791.0,2789.7,0.78565995]
[1763947329676,0.198,2790.9,2789.7,0.55665995]
[1763947329905,0.198,2790.9,2789.7,1.46365259]
[1763947330105,0.4631,2790.8,2789.7,0.45665995]
[1763947330280,0.4631,2790.8,2790.6,0.001]
[1763947330676,0.4517,2790.7,2790.6,0.001]
[1763947331107,0.9148,2790.7,2790.6,0.001]
[1763947331321,9.595825,2790.7,2790.3,0.001]
[1763947331475,0.3828,2790.4,2790.3,0.001]
[1763947332010,0.3828,2790.4,2789.5,0.001]
[1763947332011,3.59279264,2790.3,2789.5,0.001]
[1763947332201,0.649,2789.6,2789.5,0.001]
[1763947332709,1.1121,2789.6,2789.5,0.001]
[1763947332909,0.649,2789.6,2789.5,0.001]
[1763947333313,1.1121,2789.6,2789.5,0.001]
[1763947333517,0.649,2789.6,2789.5,0.001]
[1763947333714,0.198,2789.6,2789.5,0.001]
[1763947334012,0.198,2789.8,2789.5,0.001]
[1763947334388,0.4517,2789.6,2789.5,0.001]
[1763947334789,0.9148,2789.6,2789.5,0.001]
[1763947335316,1.11677926,2789.6,2789.5,0.001]
[1763947336113,11.1772619,2789.6,2789.5,0.001]
[1763947336315,16.296854,2789.5,2789.2,0.001]
[1763947336516,0.3733,2789.3,2789.2,0.001]
[1763947336897,0.8364,2789.3,2789.2,0.001]
[1763947339615,6.93775264,2789.3,2789.2,0.001]
[1763947339798,13.1063109,2789.3,2789.2,0.001]
[1763947339995,10.9869199,2789.3,2788.9,0.001]
[1763947340235,12.57517864,2789.1,2788.9,0.001]
[1763947340550,1.35789264,2789.1,2788.9,0.001]
[1763947340827,4.61444664,2789.1,2788.9,0.001]
[1763947341008,18.3068993,2789.1,2788.9,0.001]
[1763947341192,7.7174943,2789.1,2788.9,0.001]
[1763947341791,6.9024673,2789.1,2788.9,0.001]
[1763947341996,2.2824373,2789.1,2788.9,0.001]
[1763947342229,16.71324464,2789.1,2788.9,0.001]
[1763947342579,0.90699264,2789.0,2788.9,0.001]
[1763947342748,18.04104664,2789.0,2788.9,0.001]
[1763947342953,17.20384664,2788.9,2788.8,0.001]
[1763947343244,13.51637764,2788.6,2788.5,0.001]
[1763947343451,13.51684667,2788.6,2788.5,0.001]
[1763947343744,12.62743467,2788.6,2788.5,0.001]
[1763947344041,12.12793967,2788.6,2788.5,0.001]
[1763947344194,11.87928967,2788.6,2788.5,0.001]
[1763947345336,18.82841884,2788.6,2788.5,0.001]
[1763947345536,17.53093884,2788.6,2788.5,0.001]
[1763947345735,16.52975584,2788.6,2788.5,0.001]
[1763947346243,19.62792484,2788.6,2788.5,0.001]
[1763947346466,18.46652784,2788.6,2788.5,0.001]
[1763947347330,16.74292684,2788.6,2788.5,0.001]
[1763947347544,5.60641784,2788.6,2788.5,0.001]
[1763947347765,4.16408081,2788.6,2788.5,0.001]
[1763947348130,1.88873381,2788.6,2788.5,0.001]
[1763947348739,1.74489264,2788.6,2788.5,0.001]
[1763947350968,0.804921,2788.9,2788.5,0.001]
[1763947351169,0.198,2788.9,2788.5,0.001]
[1763947351667,0.4517,2788.6,2788.5,0.001]
[1763947352036,0.9148,2788.6,2788.5,0.001]
[1763947352236,0.198,2788.9,2788.5,0.001]
[1763947352550,0.4631,2788.8,2788.5,0.001]
[1763947352742,0.03575259,2788.7,2788.5,0.001]
[1763947352933,0.198,2788.9,2788.5,0.001]
[1763947353133,0.002,2789.0,2788.5,0.4672]
[1763947353334,0.002,2789.0,2788.9,0.4662]
[1763947353549,0.002,2789.0,2788.9,0.5662]
[1763947353756,0.002,2789.0,2788.9,1.56762989]
[1763947353958,0.002,2789.3,2788.9,2.37462253]
[1763947354135,0.002,2789.3,2789.2,0.6203]
[1763947354335,0.002,2789.3,2788.9,0.53522989]
[1763947354650,0.002,2789.3,2788.5,0.001]
[1763947355453,0.002,2789.3,2788.6,0.4642]
[1763947356069,0.002,2789.3,2789.2,0.6203]
[1763947356459,0.002,2789.3,2789.2,1.0845]
[1763947357842,0.002,2789.3,2789.2,0.6077]
[1763947358042,0.002,2789.3,2789.2,0.1561]
[1763947358661,0.002,2789.3,2789.2,0.6077]
[1763947359066,0.002,2789.3,2788.5,0.5652]
[1763947359381,0.002,2789.3,2788.6,0.78668176]
[1763947359971,0.002,2789.3,2788.7,0.4642]
[1763947360281,0.002,2789.3,2788.6,0.32248176]
[1763947361157,0.002,2789.3,2789.2,0.1561]
[1763947361368,0.002,2789.3,2789.2,0.6077]
[1763947361537,0.002,2789.3,2788.8,5.25029885]
[1763947361538,0.002,2789.3,2788.8,0.4642]
[1763947361737,0.002,2789.3,2788.6,0.32248176]
[1763947361939,0.002,2789.3,2788.8,0.4642]
[1763947362138,0.002,2789.3,2789.2,0.6077]
[1763947362335,0.002,2789.3,2789.2,1.0719]
[1763947363340,0.002,2789.3,2789.2,1.1719]
[1763947363538,0.002,2789.6,2789.3,1.849625]
[1763947363768,0.002,2789.6,2789.5,0.5642]